bitfinex-derivatives/quotes_SOLF0:USTF0_20241231
["timestamp","ask_amount","ask_price","bid_price","bid_amount"]
[1735651979366,2.5574,195.82,195.76,4.1039]
[1735651979668,3.62,195.86,195.76,4.1039]
[1735651979967,2.5574,195.82,195.77,2.5579]
[1735651980266,3.62,195.86,195.76,1.546]
[1735651980567,20.05567428,195.91,195.84,2.557]
[1735651981264,3.62,195.93,195.8,3.62]
[1735651982171,2.5563,195.9,195.8,3.62]
[1735651982672,20.05567428,195.85,195.76,1.546]
[1735651983670,20.05567428,195.85,195.76,4.104]
[1735651983868,2.5574,195.82,195.76,4.104]
[1735651984063,20.05567428,195.85,195.76,1.546]
[1735651984268,54.7552,195.97,195.76,1.546]
[1735651984269,3.62,195.92,195.76,1.546]
[1735651984470,20.05567428,195.91,195.76,1.546]
[1735651985773,20.05567428,195.91,195.81,2.5574]
[1735651986370,2.5567,195.87,195.82,2.5573]
[1735651986571,20.05567428,195.91,195.77,4.35245816]
[1735651986772,20.05567428,195.91,195.76,1.546]
[1735651986973,2.5569,195.85,195.8,2.5574]
[1735651987473,20.05567428,195.91,195.76,1.546]
[1735651987671,20.05567428,195.87,195.76,1.546]
[1735651987876,5.2035,195.86,195.76,1.546]
[1735651988171,20.05567428,195.83,195.7,10.54183032]
[1735651988476,20.05567428,195.83,195.7,5.1626]
[1735651988767,20.05567428,195.83,195.71,4.00986563]
[1735651988973,20.05567428,195.83,195.73,2.5584]
[1735651989173,20.05567428,195.83,195.7,5.1626]
[1735651989374,20.05567428,195.83,195.72,2.5586]
[1735651989975,2.5582,195.75,195.71,2.5586]
[1735651990276,3.64,195.8,195.7,1.5226]
[1735651990771,20.05567428,195.79,195.7,1.5226]
[1735651991276,2.5587,195.72,195.7,1.5226]
[1735651991476,20.05567428,195.79,195.62,3.1512]
[1735651991671,20.05567428,195.79,195.63,18.40823372]
[1735651991867,20.05567428,195.79,195.66,2.5593]
[1735651991868,2.5588,195.71,195.66,2.5593]
[1735651992076,20.05567428,195.79,195.66,2.5593]
[1735651992570,2.5587,195.72,195.66,2.5593]
[1735651992873,2.5588,195.71,195.65,2.5595]
[1735651993278,3.64,195.74,195.62,4.7543]
[1735651993574,2.9796,195.73,195.62,4.7543]
[1735651993969,20.05567428,195.71,195.61,46.06827041]
[1735651994172,20.05567428,195.71,195.61,3.53082435]
[1735651994478,2.5591,195.68,195.61,3.53082435]
[1735651994777,3.64,195.67,195.61,3.53082435]
[1735651995276,23.69567428,195.71,195.61,3.53082435]
[1735651995782,2.5593,195.67,195.57,1.5042]
[1735651996077,23.69567428,195.71,195.58,4.01415347]
[1735651996277,23.69567428,195.71,195.57,1.5042]
[1735651996278,2.5591,195.69,195.62,2.5598]
[1735651996473,2.5591,195.69,195.57,1.5042]
[1735651996674,23.69567428,195.71,195.58,8.33572516]
[1735651996873,23.69567428,195.71,195.59,4.01227903]
[1735651997074,2.5592,195.68,195.57,1.5042]
[1735651997274,23.69567428,195.71,195.58,4.01139213]
[1735651997474,23.69567428,195.71,195.57,1.5042]
[1735651997869,2.5597,195.64,195.59,2.5603]
[1735651998079,23.69567428,195.71,195.57,1.5042]
[1735651998780,20.05567428,195.67,195.57,1.5042]
[1735651999677,20.05567428,195.67,195.57,4.0647]
[1735651999678,2.5601,195.61,195.57,4.0647]
[1735651999978,3.64,195.64,195.51,3.1655]
[1735652000289,2.5604,195.59,195.54,2.5608]
[1735652001178,2.5606,195.57,195.52,2.5612]
[1735652001376,23.21397428,195.63,195.49,1.5546]
[1735652001778,3.1583,195.63,195.52,20.05567428]
[1735652001980,20.05567428,195.69,195.53,3.64]
[1735652002175,20.05567428,195.72,195.55,20.05567428]
[1735652002382,2.5595,195.66,195.61,2.56]
[1735652002580,3.64,195.71,195.57,1.5891]
[1735652002973,20.05567428,195.75,195.58,20.05567428]
[1735652003183,3.64,195.74,195.61,20.05567428]
[1735652003479,3.1948,195.78,195.64,20.05567428]
[1735652003687,3.1948,195.78,195.65,5.2291]
[1735652003876,3.1948,195.78,195.67,20.05567428]
[1735652004078,5.7526,195.78,195.72,2.5585]
[1735652004278,2.5578,195.78,195.72,2.5585]
[1735652004976,6.1976,195.8,195.67,20.05567428]
[1735652005178,2.9639,195.83,195.68,3.99591267]
[1735652005381,3.64,195.84,195.7,20.05567428]
[1735652005577,20.05567428,195.87,195.71,3.64]
[1735652005780,2.5571,195.84,195.71,3.64]
[1735652005973,3.64,195.86,195.73,20.05567428]
[1735652006173,32.60608407,195.91,195.74,34.21008407]
[1735652006379,3.64,195.9,195.78,2.5577]
[1735652006577,3.64,195.9,195.74,34.21008407]
[1735652006976,2.5569,195.85,195.77,2.5578]
[1735652007678,2.5569,195.85,195.78,2.5577]
[1735652007885,3.64,195.9,195.78,2.5577]
[1735652008082,32.60608407,195.88,195.75,2.5581]
[1735652008287,32.60608407,195.88,195.74,1.604]
[1735652008480,3.64,195.89,195.74,34.21008407]
[1735652008681,3.64,195.89,195.75,3.99097507]
[1735652008981,3.64,195.89,195.74,34.21008407]
[1735652009379,2.5566,195.87,195.82,2.5573]
[1735652009585,2.5566,195.87,195.77,3.64]
[1735652009984,2.5566,195.87,195.8,2.5575]
[1735652010187,2.5566,195.87,195.77,3.64]
[1735652011089,2.5566,195.87,195.75,3.64]
[1735652011291,2.5568,195.86,195.75,3.64]
[1735652011583,36.24608407,195.91,195.75,3.64]
[1735652011783,36.24608407,195.91,195.81,2.5573]
[1735652012181,36.24608407,195.91,195.77,2.5578]
[1735652012381,36.24608407,195.91,195.75,3.64]
[1735652012782,32.60608407,195.87,195.75,3.64]
[1735652013585,2.5571,195.84,195.78,2.5577]
[1735652013784,3.64,195.86,195.78,2.5577]
[1735652013982,3.64,195.86,195.75,3.64]
[1735652014184,2.5575,195.81,195.75,3.64]
[1735652014883,3.64,195.86,195.74,1.604]
[1735652015079,2.5572,195.83,195.79,2.5576]
[1735652015478,3.64,195.86,195.79,2.5576]
[1735652015680,2.5571,195.84,195.79,2.5576]
[1735652015887,3.58,195.86,195.74,1.604]
[1735652016281,2.5569,195.85,195.74,1.604]
[1735652016475,3.58,195.86,195.74,1.604]
[1735652017175,3.58,195.86,195.74,4.1622]
[1735652017380,2.5576,195.8,195.74,1.604]
[1735652017786,3.58,195.86,195.74,1.604]
[1735652018183,32.60608407,195.91,195.74,1.604]
[1735652018380,2.5565,195.88,195.84,2.557]
[1735652018575,2.5565,195.88,195.77,3.58]
[1735652018978,6.1364,195.9,195.77,3.58]
[1735652019176,3.58,195.9,195.78,1.5737]
[1735652019380,3.58,195.9,195.84,2.5569]
[1735652019583,2.5565,195.89,195.84,2.5569]
[1735652019780,2.5565,195.89,195.78,1.5737]
[1735652019781,3.58,195.9,195.78,1.5737]
[1735652020078,2.557,195.84,195.76,1.5292]
[1735652020285,32.60608407,195.88,195.76,1.5292]
[1735652020485,32.60608407,195.88,195.8,2.5575]
[1735652021088,32.60608407,195.88,195.75,5.1537]
[1735652021292,32.60608407,195.85,195.74,1.604]
[1735652021485,3.58,195.84,195.74,1.604]
[1735652021690,2.5575,195.8,195.76,2.558]
[1735652022081,3.58,195.84,195.74,1.604]
[1735652022285,3.58,195.84,195.74,4.1623]
[1735652022782,2.5578,195.79,195.74,4.1623]
[1735652022981,2.5578,195.79,195.75,2.5582]
[1735652023178,3.58,195.84,195.74,1.604]
[1735652023389,32.60608407,195.82,195.74,1.604]
[1735652023588,32.60608407,195.82,195.75,2.5582]
[1735652023989,2.5577,195.79,195.75,2.5582]
[1735652024583,2.5578,195.78,195.74,2.5583]
[1735652024779,32.60608407,195.82,195.7,1.5699]
[1735652025191,2.5577,195.79,195.75,2.5581]
[1735652026186,20.08202199,195.83,195.7,1.5699]
[1735652026391,20.08202199,195.8,195.64,3.58]
[1735652026592,1.61,195.79,195.65,8.31990632]
[1735652026888,2.5585,195.73,195.69,2.5588]
[1735652027284,20.08202199,195.77,195.65,4.31297786]
[1735652027493,20.08202199,195.77,195.64,1.6174]
[1735652027787,20.08202199,195.77,195.67,2.5592]
[1735652028092,20.08202199,195.77,195.64,1.6174]
[1735652028294,3.58,195.76,195.64,1.6174]
[1735652028591,3.58,195.76,195.65,4.01047615]
[1735652028794,3.58,195.76,195.64,1.6174]
[1735652028985,3.58,195.76,195.65,4.01064394]
[1735652029189,3.58,195.76,195.64,1.6174]
[1735652029589,6.1381,195.76,195.72,2.5585]
[1735652029983,1.61,195.79,195.64,1.6174]
[1735652030183,1.5479,195.82,195.69,20.08202199]
[1735652030389,3.58,195.86,195.72,20.08202199]
[1735652030586,3.58,195.86,195.73,8.1706]
[1735652030888,2.557,195.85,195.76,2.5579]
[1735652031089,3.58,195.86,195.73,8.1706]
[1735652031487,2.5569,195.85,195.81,2.5574]
[1735652031992,3.58,195.87,195.73,8.1706]
[1735652032194,2.5571,195.84,195.79,2.5575]
[1735652032393,3.58,195.87,195.73,8.1706]
[1735652032593,3.58,195.87,195.73,4.5906]
[1735652032594,20.08202199,195.86,195.73,4.5906]
[1735652033692,2.5578,195.78,195.73,1.4846]
[1735652034097,2.5577,195.79,195.75,2.5581]
[1735652034293,3.58,195.81,195.73,1.4846]
[1735652034790,2.558,195.77,195.73,4.043]
[1735652035097,3.58,195.81,195.73,1.4846]
[1735652035296,2.5578,195.78,195.74,2.5583]
[1735652036290,2.5582,195.75,195.71,2.5587]
[1735652036598,3.58,195.81,195.67,8.3072]
[1735652037097,3.58,195.81,195.67,4.7272]
[1735652037600,2.5582,195.76,195.71,2.5587]
[1735652037798,2.5582,195.76,195.66,20.08202199]
[1735652038195,2.5582,195.76,195.72,2.5585]
[1735652038395,2.5582,195.75,195.72,2.5585]
[1735652038802,3.58,195.81,195.74,2.5583]
[1735652039101,3.58,195.81,195.66,20.08202199]
[1735652039696,2.558,195.77,195.71,2.5586]
[1735652040001,3.58,195.81,195.66,20.08202199]
[1735652040201,3.58,195.81,195.67,8.32586608]
[1735652040393,2.5579,195.78,195.66,20.08202199]
[1735652040590,3.58,195.81,195.66,20.08202199]
[1735652040798,2.5577,195.79,195.67,8.326855]
[1735652040994,3.58,195.81,195.68,4.01131974]
[1735652041200,3.58,195.81,195.69,8.32685341]
[1735652041398,2.5577,195.8,195.76,2.5579]
[1735652041590,3.58,195.85,195.71,3.58]
[1735652041790,2.5568,195.86,195.82,2.5572]
[1735652041991,20.08202199,195.87,195.73,8.3239658]
[1735652042193,20.08202199,195.87,195.74,3.1409]
[1735652043102,20.08202199,195.87,195.74,1.5735]
[1735652043498,20.08202199,195.83,195.74,2.5583]
[1735652043703,20.08202199,195.83,195.7,6.89908267]
[1735652043704,3.58,195.82,195.7,6.89908267]
[1735652044007,2.5577,195.79,195.7,9.45778267]
[1735652044204,3.58,195.82,195.7,6.89908267]
[1735652044499,3.58,195.82,195.69,1.4842]
[1735652045100,2.5578,195.79,195.74,2.5582]
[1735652045303,3.58,195.82,195.69,1.4842]
[1735652045502,1.4846,195.78,195.69,1.4842]
[1735652045898,2.5582,195.75,195.71,2.5587]
[1735652046103,1.4846,195.78,195.67,3.1293]
[1735652046411,1.4846,195.78,195.68,8.36825395]
[1735652046709,3.54,195.77,195.71,2.5586]
[1735652047098,3.54,195.77,195.66,1.4842]
[1735652047303,3.54,195.77,195.63,6.89908267]
[1735652047304,1.4742,195.76,195.63,6.89908267]
[1735652047504,1.4742,195.76,195.64,14.82053919]
[1735652047704,1.4742,195.76,195.65,8.36910463]
[1735652047906,2.5584,195.73,195.68,2.559]
[1735652048803,2.5585,195.73,195.68,2.559]
[1735652049112,1.4742,195.76,195.66,2.5593]
[1735652049312,2.5588,195.71,195.66,2.5593]
[1735652050113,2.5589,195.7,195.66,2.5593]
[1735652050608,2.5587,195.71,195.67,2.5592]
[1735652051010,3.54,195.72,195.62,1.5156]
[1735652051205,6.0986,195.72,195.63,14.80721933]
[1735652051405,3.54,195.72,195.64,8.35970425]
[1735652051606,3.54,195.72,195.65,4.02914407]
[1735652051809,6.0986,195.72,195.68,2.559]
[1735652052005,6.0986,195.72,195.62,1.5156]
[1735652052006,3.54,195.72,195.62,1.5156]
[1735652052209,3.54,195.72,195.63,14.80188653]
[1735652052411,3.54,195.72,195.64,8.35619527]
[1735652052606,3.54,195.72,195.62,1.5156]
[1735652052806,3.54,195.72,195.68,2.559]
[1735652052807,6.0987,195.72,195.68,2.559]
[1735652053006,6.0987,195.72,195.62,1.5156]
[1735652053306,2.5589,195.7,195.66,2.5592]
[1735652054014,1.4742,195.76,195.67,8.34873842]
[1735652054216,20.08202199,195.79,195.65,3.54]
[1735652054409,2.5582,195.76,195.72,2.5585]
[1735652054610,3.54,195.81,195.65,23.62202199]
[1735652054914,3.54,195.81,195.66,14.7899393]
[1735652055108,2.5577,195.79,195.75,2.5581]
[1735652055309,3.54,195.81,195.7,3.54]
[1735652055609,3.54,195.81,195.71,5.63674999]
[1735652055806,3.54,195.81,195.71,1.6124]
[1735652056210,2.5582,195.75,195.7,2.5588]
[1735652056911,2.5582,195.75,195.71,2.5587]
[1735652057412,2.5584,195.74,195.69,2.5589]
[1735652057614,2.5584,195.74,195.66,32.6471307]
[1735652057810,2.5584,195.74,195.67,8.35394841]
[1735652058016,2.5584,195.74,195.7,2.5587]
[1735652058420,21.58462199,195.79,195.66,1.5108]
[1735652058613,23.62202199,195.76,195.64,6.89908267]
[1735652058918,2.5589,195.7,195.65,4.02817749]
[1735652059119,2.5589,195.7,195.65,2.5595]
[1735652059410,2.5589,195.7,195.63,6.89908267]
[1735652059616,2.5591,195.69,195.64,4.02832787]
[1735652059819,1.5026,195.79,195.63,6.89908267]
[1735652060019,20.08202199,195.73,195.63,6.89908267]
[1735652060218,2.5592,195.68,195.62,1.5319]
[1735652060414,3.54,195.72,195.62,1.5319]
[1735652060719,23.84202199,195.73,195.62,1.5319]
[1735652061019,20.08202199,195.77,195.63,14.79592149]
[1735652061217,20.08202199,195.77,195.62,25.37392199]
[1735652061218,20.08202199,195.77,195.62,5.2919]
[1735652061719,20.08202199,195.77,195.67,2.5591]
[1735652062223,2.5585,195.73,195.65,2.5594]
[1735652062415,3.76,195.72,195.65,2.5594]
[1735652063122,2.5591,195.69,195.65,2.5594]
[1735652063319,2.5591,195.69,195.66,2.5593]
[1735652063813,2.5591,195.69,195.65,2.5594]
[1735652064017,2.5592,195.68,195.62,1.5319]
[1735652064209,2.5592,195.68,195.63,8.35832275]
[1735652064413,3.76,195.72,195.62,1.5319]
[1735652064616,3.76,195.72,195.63,14.80227133]
[1735652064821,3.76,195.72,195.64,4.02892854]
[1735652065018,3.76,195.72,195.65,2.5595]
[1735652065521,2.5591,195.69,195.65,2.5595]
[1735652066120,3.76,195.72,195.65,2.5595]
[1735652066319,2.5592,195.68,195.65,2.5595]
[1735652066523,3.76,195.72,195.66,2.5593]
[1735652066727,2.5591,195.68,195.62,1.5319]
[1735652066922,3.76,195.72,195.62,1.5319]
[1735652067221,2.559,195.69,195.63,2.5597]
[1735652067425,2.559,195.69,195.62,1.5319]
[1735652067426,3.76,195.72,195.62,1.5319]
[1735652067622,20.08202199,195.73,195.63,8.35908674]
[1735652067820,2.5591,195.68,195.63,2.5597]
[1735652068026,3.76,195.72,195.57,8.41568267]
[1735652068327,20.08202199,195.69,195.58,14.81131528]
[1735652068522,20.08202199,195.69,195.59,8.36164981]
[1735652068722,20.08202199,195.69,195.6,8.36164981]
[1735652069026,2.5595,195.65,195.61,2.5599]
[1735652069922,2.5595,195.65,195.62,2.5599]
[1735652070430,2.5594,195.66,195.62,2.5598]
[1735652071023,20.08202199,195.69,195.62,2.5598]
[1735652071530,20.08202199,195.69,195.57,1.5166]
[1735652071729,1.5187,195.68,195.58,8.34261452]
[1735652071927,1.5187,195.68,195.59,8.34261452]
[1735652072128,2.5601,195.61,195.57,2.5605]
[1735652072926,2.5601,195.61,195.58,2.5604]
[1735652073429,3.76,195.64,195.59,2.5602]
[1735652073430,2.5599,195.63,195.59,2.5602]
[1735652073618,2.5599,195.63,195.56,3.0574]
[1735652073817,2.5599,195.63,195.57,4.02001337]
[1735652074023,3.76,195.64,195.61,2.5599]
[1735652074427,2.5596,195.65,195.61,2.5599]
[1735652074623,2.5596,195.65,195.62,2.5598]
[1735652076130,2.5594,195.66,195.63,2.5597]
[1735652076531,2.5595,195.65,195.62,2.5598]
[1735652080226,20.08202199,195.69,195.56,6.8174]
[1735652080531,2.5595,195.65,195.62,2.5598]
[1735652082733,2.5596,195.64,195.56,34.4137307]
[1735652082931,2.5596,195.64,195.61,2.5599]
[1735652084031,2.5598,195.63,195.59,2.5602]
[1735652084230,2.5598,195.63,195.56,3.0574]
[1735652084432,2.5598,195.63,195.58,2.5603]
[1735652084636,2.5598,195.63,195.56,3.0574]
[1735652084937,2.5598,195.63,195.57,4.02133416]
[1735652085131,2.5598,195.63,195.56,3.0574]
[1735652085331,2.5598,195.63,195.57,4.02127568]
[1735652085631,2.5598,195.63,195.56,3.0574]
[1735652086126,12.56653172,195.66,195.53,1.5127]
[1735652086333,12.56653172,195.66,195.57,2.5605]
[1735652086535,2.5601,195.61,195.57,2.5605]
[1735652087236,16.32653172,195.63,195.56,2.5606]
[1735652087536,16.32653172,195.63,195.53,1.5127]
[1735652087737,2.5605,195.58,195.54,10.91094469]
[1735652087939,141.7946377,195.83,195.57,12.56653172]
[1735652088136,12.56653172,195.78,195.63,12.56653172]
[1735652088329,2.5583,195.74,195.68,2.559]
[1735652089039,2.5583,195.74,195.67,2.5591]
[1735652089237,2.5583,195.74,195.64,1.6063]
[1735652089735,2.5583,195.74,195.68,2.559]
[1735652089935,2.5583,195.74,195.64,1.6063]
[1735652090136,2.5585,195.73,195.68,2.559]
[1735652090542,3.76,195.76,195.64,1.6063]
[1735652090936,2.5587,195.72,195.65,4.02172088]
[1735652091135,2.5587,195.72,195.64,1.6063]
[1735652091338,2.5587,195.72,195.65,8.34212767]
[1735652091539,2.5587,195.72,195.64,1.6063]
[1735652091738,2.5587,195.72,195.65,4.0223317]
[1735652091941,2.5587,195.72,195.66,4.02197467]
[1735652092138,2.5587,195.72,195.64,1.6063]
[1735652092337,2.5585,195.73,195.65,8.34253274]
[1735652092542,2.5585,195.73,195.66,8.34253274]
[1735652092744,3.76,195.76,195.67,4.02194817]
[1735652092940,3.76,195.76,195.64,1.6063]
[1735652093246,3.76,195.76,195.65,8.34273633]
[1735652093446,2.5586,195.72,195.68,2.559]
[1735652093839,3.68,195.78,195.64,1.6063]
[1735652094145,3.68,195.78,195.65,14.77449054]
[1735652094352,2.5583,195.75,195.7,2.5587]
[1735652094540,2.5583,195.75,195.64,1.6063]
[1735652094736,2.5583,195.75,195.65,14.7723524]
[1735652094946,2.5583,195.75,195.66,14.7723524]
[1735652095146,2.5583,195.75,195.69,2.5589]
[1735652095339,2.5584,195.74,195.69,2.5589]
[1735652095538,2.5584,195.74,195.64,1.6063]
[1735652095744,2.5582,195.75,195.71,2.5587]
[1735652095944,2.5582,195.75,195.64,1.6063]
[1735652096247,2.5582,195.75,195.68,2.5591]
[1735652096444,2.5582,195.75,195.64,1.6063]
[1735652096639,3.68,195.78,195.65,14.76921619]
[1735652096840,3.68,195.78,195.69,2.5589]
[1735652097143,20.0898673,195.81,195.69,3.68]
[1735652097338,2.71120813,195.85,195.7,3.0518]
[1735652097648,2.5573,195.82,195.78,2.5578]
[1735652097948,2.71120813,195.85,195.76,2.558]
[1735652098148,2.71120813,195.85,195.71,3.68]
[1735652098349,20.0898673,195.82,195.71,3.68]
[1735652098548,20.0898673,195.82,195.72,2.5585]
[1735652099050,2.5579,195.78,195.71,3.68]
[1735652099251,20.0898673,195.82,195.73,2.5584]
[1735652099850,20.0898673,195.82,195.74,2.5583]
[1735652100254,2.5579,195.78,195.74,2.5583]
[1735652100458,20.0898673,195.82,195.71,3.68]
[1735652100752,20.0898673,195.82,195.72,9.81503271]
[1735652100944,20.0898673,195.82,195.74,2.5583]
[1735652101345,2.5579,195.78,195.67,3.68]
[1735652101543,20.0898673,195.82,195.71,2.5587]
[1735652101860,20.0898673,195.82,195.67,3.68]
[1735652102047,20.0898673,195.82,195.72,2.5585]
[1735652102246,20.0898673,195.82,195.67,3.68]
[1735652102452,20.0898673,195.82,195.68,4.01952386]
[1735652102754,20.0898673,195.82,195.71,2.5587]
[1735652103950,2.5579,195.77,195.73,2.5583]
[1735652104347,3.68,195.81,195.66,1.604]
[1735652104546,20.0898673,195.78,195.66,1.604]
[1735652104750,20.0898673,195.78,195.67,8.32773871]
[1735652104943,2.5582,195.76,195.72,2.5586]
[1735652105351,20.0898673,195.78,195.66,1.604]
[1735652105654,2.5583,195.75,195.71,2.5586]
[1735652105952,20.0898673,195.78,195.66,1.604]
[1735652106553,2.5587,195.72,195.68,2.5591]
[1735652106748,20.0898673,195.78,195.66,1.604]
[1735652106950,2.5583,195.75,195.67,2.5591]
[1735652107150,3.68,195.75,195.66,1.604]
[1735652107463,23.1465673,195.8,195.66,1.604]
[1735652107749,3.68,195.78,195.66,1.604]
[1735652107951,3.68,195.78,195.67,3.68]
[1735652108155,2.5579,195.77,195.73,2.5584]
[1735652108551,3.68,195.78,195.73,2.5584]
[1735652108948,3.68,195.78,195.76,2.558]
[1735652109150,2.5578,195.79,195.76,2.558]
[1735652109654,2.5578,195.79,195.75,2.5582]
[1735652109855,2.5578,195.79,195.68,6.4169733]
[1735652110054,2.5578,195.79,195.69,8.31886503]
[1735652110248,3.0567,195.8,195.75,2.5581]
[1735652110249,2.5578,195.78,195.75,2.5581]
[1735652111948,20.0898673,195.84,195.78,2.5578]
[1735652112149,2.71120813,195.85,195.78,2.5578]
[1735652112351,18.93760126,195.85,195.73,3.68]
[1735652112555,2.5574,195.81,195.73,3.68]
[1735652112747,18.93760126,195.85,195.73,3.68]
[1735652112949,18.93760126,195.85,195.71,12.54639313]
[1735652113146,2.5573,195.82,195.73,3.68]
[1735652113752,3.0493,195.89,195.74,12.54639313]
[1735652114052,3.0493,195.89,195.77,12.54639313]
[1735652114652,12.54639313,195.91,195.78,8.29621257]
[1735652114853,12.54639313,195.91,195.79,7.67968526]
[1735652115049,2.5562,195.9,195.86,2.5567]
[1735652115452,12.54639313,195.91,195.81,3.68]
[1735652115653,15.10249313,195.91,195.87,2.5566]
[1735652116054,12.54639313,195.91,195.81,3.68]
[1735652116253,2.5563,195.9,195.84,2.557]
[1735652116453,2.5563,195.9,195.81,3.68]
[1735652116855,2.5563,195.9,195.85,2.5568]
[1735652117055,2.5563,195.9,195.8,12.54639313]
[1735652117351,2.5563,195.9,195.81,3.68]
[1735652118155,2.5563,195.9,195.86,2.5567]
[1735652119152,2.5565,195.88,195.84,2.557]
[1735652119955,2.5565,195.88,195.85,2.5569]
[1735652120550,2.5565,195.88,195.77,12.54639313]
[1735652120752,2.5565,195.88,195.83,2.5571]
[1735652121953,2.5565,195.88,195.84,2.557]
[1735652122161,2.5566,195.87,195.78,3.6]
[1735652123055,2.5566,195.87,195.84,2.557]
[1735652123453,12.54639313,195.91,195.84,2.557]
[1735652123757,2.5565,195.88,195.84,2.557]
[1735652124753,12.54639313,195.91,195.82,2.5572]
[1735652124950,12.54639313,195.91,195.77,16.14639313]
[1735652125660,2.5564,195.89,195.77,16.14639313]
[1735652125957,12.54639313,195.91,195.8,12.54639313]
[1735652126156,12.54639313,195.91,195.88,2.5564]
[1735652126362,12.54639313,195.94,195.83,16.14639313]
[1735652126757,12.54639313,195.94,195.9,2.5561]
[1735652126758,15.10219313,195.94,195.9,2.5561]
[1735652127461,2.5558,195.94,195.9,2.5561]
[1735652127657,5.6703,195.96,195.92,2.556]
[1735652127854,12.54639313,195.97,195.86,12.54639313]
[1735652128066,16.14639313,196.0,195.86,12.54639313]
[1735652128365,2.5553,195.98,195.94,2.5556]
[1735652128556,2.5553,195.98,195.89,3.6]
[1735652128863,5.654,196.02,195.98,2.5552]
[1735652129063,5.654,196.02,195.89,16.14639313]
[1735652129253,3.0993,196.02,195.89,16.14639313]
[1735652129454,3.0993,196.02,195.99,2.555]
[1735652129654,1.5532,196.02,195.99,2.555]
[1735652129861,1.5532,196.02,195.93,1.5037]
[1735652130166,4.1079,196.02,195.98,2.5552]
[1735652130351,1.5532,196.02,195.93,1.5037]
[1735652130554,2.5552,195.98,195.93,1.5037]
[1735652130761,2.5552,195.98,195.93,2.5557]
[1735652131061,12.54639313,196.0,195.89,3.6]
[1735652131959,2.5553,195.98,195.93,2.5558]
[1735652132159,2.5553,195.98,195.89,3.6]
[1735652132354,2.5553,195.98,195.93,2.5557]
[1735652132762,2.5553,195.97,195.93,2.5557]
[1735652133064,12.54639313,196.0,195.89,16.14639313]
[1735652133265,4.108,196.02,195.89,16.14639313]
[1735652133562,12.54639313,196.03,195.92,12.54639313]
[1735652133763,15.10109313,196.03,195.99,2.5549]
[1735652134262,2.5548,196.01,195.98,2.5552]
[1735652134566,2.5548,196.01,195.92,12.54639313]
[1735652134766,12.54639313,196.03,195.92,12.54639313]
[1735652134962,2.555,196.0,195.92,12.54639313]
[1735652135362,2.5551,195.99,195.92,12.54639313]
[1735652135762,12.54639313,196.03,195.96,2.5554]
[1735652136060,12.54639313,196.03,195.92,12.54639313]
[1735652136260,3.6,196.04,196.0,2.5549]
[1735652136759,3.6,196.04,195.92,12.54639313]
[1735652136961,3.6,196.04,195.98,2.5551]
[1735652137167,2.5546,196.03,195.98,2.5551]
[1735652138063,2.5547,196.02,195.98,2.5551]
[1735652138767,2.5549,196.0,195.92,12.54639313]
[1735652139159,2.5549,196.0,195.94,2.5557]
[1735652139363,12.54639313,196.03,195.92,12.54639313]
[1735652139565,12.54639313,196.03,195.89,12.54639313]
[1735652139870,12.54639313,196.03,195.93,2.5558]
[1735652140668,2.5554,195.97,195.93,2.5558]
[1735652141676,3.6,195.97,195.86,1.5037]
[1735652141863,16.14639313,195.97,195.86,1.5037]
[1735652142369,2.5561,195.92,195.86,1.5037]
[1735652142569,16.14639313,195.97,195.86,1.5037]
[1735652142963,16.14639313,195.97,195.66,15.36]
[1735652142964,2.5564,195.89,195.8,3.6]